[Event "Superbet Rapid Poland 2022"]
[Site "Warsaw"]
[Date "2022.05.20"]
[Round "5.1"]
[White "Shevchenko, Kirill"]
[Black "Korobov, Anton"]
[Result "1/2-1/2"]
[ECO "B84"]
[WhiteElo "2644"]
[BlackElo "2671"]
[Annotator "TA"]
[PlyCount "134"]
[EventDate "2022.05.19"]
[EventType "tourn"]
[EventCountry "POL"]
[SourceTitle "playchess.com"]
[Source "ChessBase"]
[SourceQuality "1"]
[TimeControl "1500+10"]

{[%evp 25,134,59,60,55,155,56,201,114,118,110,141,137,156,118,97,47,97,100,101,101,114,91,129,122,116,41,34,35,46,24,33,-9,0,-18,17,-44,-40,-41,-8,-8,-12,-16,4,4,4,4,16,15,17,16,16,8,12,12,12,12,22,22,24,24,24,0,8,0,24,8,51,13,24,0,56,56,72,72,72,72,72,72,72,72,86,72,72,78,77,64,95,64,64,64,79,72,72,47,47,24,29,8,8,0,0,0,0,0,0,0,0,0,0,0,0]} 1. e4 {[%emt 0:00:02]} c5 {[%emt 0:00:02]} 2. Nc3 {[%emt 0:00:02]} d6 {[%emt 0:00:06]} 3. f4 {[%emt 0:00:03]} Nc6 {[%emt 0:00:23]} 4. Nf3 {[%emt 0:00:04]} a6 {[%emt 0:00:20]} 5. d4 {[%emt 0:02:05]} cxd4 {[%emt 0:00:03]} 6. Nxd4 {[%emt 0:00:01]} Nf6 {[%emt 0:00:24]} 7. Be2 {[%emt 0:01:59]} e6 {[%emt 0:00:42]} 8. Be3 {[%emt 0:00:15]} Be7 {[%emt 0:00:11]} 9. Qd2 {[%emt 0:01:03]} O-O {[%emt 0:00:35]} 10. O-O-O {[%emt 0:00:26]} Qc7 {[%emt 0:00:31]} 11. g4 {[%emt 0:01:44][%cal Bg2g4,Bg4g5][%mdl 32]} Nxd4 {[%emt 0:00:05]} 12. Bxd4 {[%emt 0:04:31]} b5 {[%emt 0:00:54]} 13. g5 {[%emt 0:00:07]} Nd7 {[%emt 0:00:03]} 14. a3 {[%emt 0:00:56] B84: Sicilian Scheveningen: 6 Be2 a6, lines without early Be3.} Rb8 {[%emt 0:03:01]} (14... Nc5 $1 $14) 15. h4 {[%emt 0:01:24] [#]} (15. f5 $16 {[%cal Of5f6] Strongly threatening f6!} Ne5 16. Rhf1) 15... Qa5 $146 {[%emt 0:02:38] [#]} (15... b4 $14 16. axb4 Qb7) ({Predecessor:} 15... Bb7 16. Rhg1 Rfc8 17. h5 Nc5 18. Bd3 e5 19. Be3 a5 20. Kb1 b4 {0-1 (52) Rump,A (1801)-Winter,L (2016) Idstein 2009}) 16. Kb1 {[%emt 0:02:13]} (16. f5 $1 $18 {[%cal Rf5f6] And now f6! would win.} exf5 17. exf5) 16... Bd8 {[%emt 0:00:14]} 17. Rh3 {[%emt 0:02:40]} e5 {[%emt 0:02:40]} 18. Ba7 {[%emt 0:03:58][%csl LRb8,LRd6]} Rb7 {[%emt 0:00:01]} 19. Bg1 {[%emt 0:00:03]} exf4 {[%emt 0:01:58]} 20. Qxf4 {[%emt 0:00:54]} ({White should try} 20. Bg4 $16) 20... b4 {[%emt 0:01:11] [#]} (20... Ne5 $14 21. Rg3 (21. Rxd6 Ng6 $17) 21... b4 22. axb4 Rxb4) 21. axb4 $1 $16 {[%emt 0:00:56]} Qxb4 {[%emt 0:00:22][%csl Gb7][%cal Rb4b2]} 22. b3 {[%emt 0:00:03] Active counter play!} Ne5 {[%emt 0:02:29]} 23. Nd5 {[%emt 0:00:30]} Qa5 {[%emt 0:00:18]} 24. Rg3 {[%emt 0:00:39]} Be6 {[%emt 0:00:02]} 25. Qd2 {[%emt 0:01:06]} (25. Bd4 $16) 25... Qxd2 $14 {[%emt 0:01:19]} 26. Rxd2 {[%emt 0:00:01]} a5 $1 {[%emt 0:00:00]} 27. Nc3 {[%emt 0:00:17]} Be7 {[%emt 0:00:23]} 28. Ba6 {[%emt 0:00:56]} Rb4 {[%emt 0:00:26][%cal Oa5a4]} 29. Kc1 {[%emt 0:00:46]} f6 {[%emt 0:00:17]} 30. Nd5 {[%emt 0:00:14]} (30. Be3 $11) 30... Bxd5 $15 {[%emt 0:00:04]} 31. Rxd5 {[%emt 0:00:01]} fxg5 {[%emt 0:00:28]} (31... Rxe4 $5 {[%cal Ra5a4]} 32. Rd4 Rxd4 33. Bxd4 fxg5 34. hxg5 Rf4 $15) 32. hxg5 {[%emt 0:00:03]} a4 {[%emt 0:00:30]} 33. Rd4 {[%emt 0:00:10]} Rxd4 {[%emt 0:00:40]} (33... Rfb8 {with more complications.} 34. Rxb4 Rxb4 35. bxa4 Rxa4 36. Bb7 Kf7) 34. Bxd4 {[%emt 0:00:01] A strong pair of Bishops.} axb3 {[%emt 0:00:25]} 35. cxb3 {[%emt 0:00:08]} Rb8 {[%emt 0:01:18]} 36. Bxe5 {[%emt 0:00:33]} dxe5 $11 {[%emt 0:00:01][%mdl 4096] Endgame KRB-KRB} 37. Bc4+ {[%emt 0:00:00]} Kf8 {[%emt 0:00:35]} 38. Kc2 {[%emt 0:00:18]} Rb6 {[%emt 0:00:07]} 39. Rf3+ {[%emt 0:00:06]} Ke8 {[%emt 0:00:01]} 40. Rf5 {[%emt 0:00:07]} Kd8 {[%emt 0:00:38]} 41. Bf7 {[%emt 0:00:23]} Rc6+ {[%emt 0:00:36]} 42. Kd3 {[%emt 0:00:06]} Rd6+ {[%emt 0:00:02]} 43. Kc2 {[%emt 0:00:10]} Rc6+ {[%emt 0:00:01]} 44. Kd3 {[%emt 0:00:01]} Rd6+ {[%emt 0:00:01]} 45. Ke2 {[%emt 0:00:06]} Rd7 {[%emt 0:00:54][%cal Oe7g5]} 46. Be6 {[%emt 0:00:14]} Rd6 {[%emt 0:00:11]} 47. Bf7 {[%emt 0:00:01]} Rd7 {[%emt 0:00:01][%cal Oe7g5]} 48. Bg8 {[%emt 0:00:14]} h6 {[%emt 0:00:41]} 49. gxh6 {[%emt 0:00:03]} ({Of course not} 49. Rxe5 Bxg5 50. Kf3 Rd3+ 51. Kg4 Rd6 $11) 49... gxh6 {[%emt 0:00:01]} 50. Rxe5 {[%emt 0:00:03]} Rd4 {[%emt 0:00:12]} 51. Bd5 {[%emt 0:00:30]} Bg5 {[%emt 0:00:01]} 52. Kf3 {[%emt 0:00:03]} Kc7 {[%emt 0:00:05]} 53. Kg4 {[%emt 0:00:11]} Rd1 {[%emt 0:00:11]} 54. Re6 {[%emt 0:00:04]} Rf1 {[%emt 0:00:09]} 55. Kh5 {[%emt 0:00:28]} Rf6 {[%emt 0:00:07]} 56. Re8 {[%emt 0:00:11]} Kd7 {[%emt 0:00:02]} 57. Rb8 {[%emt 0:00:03]} Kd6 {[%emt 0:00:11]} 58. b4 {[%emt 0:00:11]} Be3 {[%emt 0:00:03]} 59. Re8 {[%emt 0:00:11] Black must now prevent e5+.} Kd7 {[%emt 0:00:05]} 60. Ra8 {[%emt 0:00:12]} Rb6 {[%emt 0:00:22]} 61. Ra4 {[%emt 0:00:15]} Bd2 {[%emt 0:00:16] The position is equal.} 62. e5 {[%emt 0:00:09]} Rb5 {[%emt 0:00:41]} 63. Ra7+ {[%emt 0:00:02]} Kd8 {[%emt 0:00:06]} 64. Ra8+ {[%emt 0:00:09]} Ke7 {[%emt 0:00:10]} 65. Ra7+ {[%emt 0:00:16]} Kd8 {[%emt 0:00:04]} 66. Ra5 {[%emt 0:00:10]} Rxa5 {[%emt 0:00:05]} 67. bxa5 {[%emt 0:00:01]} Bxa5 {[%emt 0:04:37] Blacks defense is rewarded with a draw.  Weighted Error Value: White=0.16 (very precise) /Black=0.17 (very precise)} 1/2-1/2

[Event "Superbet Rapid Poland 2022"]
[Site "Warsaw"]
[Date "2022.05.20"]
[Round "5.2"]
[White "Aronian, Levon"]
[Black "Anand, Viswanathan"]
[Result "0-1"]
[ECO "C24"]
[WhiteElo "2765"]
[BlackElo "2751"]
[Annotator "TA"]
[PlyCount "48"]
[EventDate "2022.05.19"]
[EventType "tourn"]
[EventCountry "POL"]
[SourceTitle "playchess.com"]
[Source "ChessBase"]
[SourceQuality "1"]
[TimeControl "1500+10"]

{[%evp 11,48,6,10,2,4,10,16,2,28,0,0,0,0,0,0,0,10,4,0,5,11,-83,-87,-457,-407,-441,-252,-256,-246,-468,-472,-451,-444,-620,-604,-847,-818,-1390,-1319]} 1. e4 {[%emt 0:00:01]} e5 {[%emt 0:00:01]} 2. Bc4 {[%emt 0:00:02]} Nf6 {[%emt 0:00:03]} 3. d3 {[%emt 0:00:02]} Bc5 {[%emt 0:00:08]} 4. Nf3 {[%emt 0:00:05]} d6 {[%emt 0:00:02]} 5. O-O {[%emt 0:00:03]} O-O {[%emt 0:00:04]} 6. c3 {[%emt 0:00:02]} Bb6 {[%emt 0:00:30]} 7. Nbd2 {[%emt 0:00:18] C24: Bishop's Opening: 2...Nf6.} c6 {[%emt 0:00:12]} 8. Bb3 {[%emt 0:00:01]} Re8 {[%emt 0:00:35]} 9. Re1 {[%emt 0:00:04] The position is equal.} Be6 {[%emt 0:00:21]} (9... Bg4 {is more complex.} 10. Nf1 Nbd7 11. h3 Bh5) 10. Bc2 {[%emt 0:00:29]} Nbd7 {[%emt 0:00:14] [#]} 11. d4 $146 {[%emt 0:00:02]} ({Predecessor:} 11. h3 h6 12. d4 Qc7 13. Nf1 Nf8 14. Ng3 Ng6 15. Be3 Red8 16. Qc1 Qe7 17. a4 {½-½ (57) Ermenkov,E (2465)-Stefanov,K (2376) Borovetz 2008}) 11... Bg4 {[%emt 0:02:36]} 12. h3 {[%emt 0:00:26]} Bh5 {[%emt 0:00:02]} 13. g4 {[%emt 0:00:29]} Bg6 {[%emt 0:00:03]} 14. dxe5 {[%emt 0:00:38]} Nxe5 {[%emt 0:01:11]} 15. Nxe5 {[%emt 0:00:02]} Rxe5 {[%emt 0:00:33]} 16. Nc4 {[%emt 0:03:22]} (16. Kg2 $1 $11 {was the only way to keep the balance.} d5 17. f4 Bxe4+ 18. Nxe4 Rxe4 19. Bxe4 Nxe4 20. Be3) 16... Nxe4 $17 {[%emt 0:00:38]} 17. Nxb6 $2 {[%emt 0:02:19][%mdl 8192] [#] Loses the game.} (17. Nxe5 $2 Nxf2 18. Qe2 Bxc2 $19) (17. Bxe4 $17 {is more resistant.} Rxe4 18. Nxb6 Rxe1+ 19. Qxe1 Qxb6 20. b3) 17... Nxf2 $1 $19 {[%emt 0:01:53]} (17... axb6 18. Bxe4 Rxe4 19. f3 Rxe1+ 20. Qxe1 $17) 18. Qd2 {[%emt 0:00:04]} (18. Kxf2 Qh4+ 19. Kg2 Rxe1 $19) 18... Qxb6 {[%emt 0:01:04]} (18... Ne4 19. Rxe4 Qxb6+ 20. Rd4 $17) (18... Nxh3+ $142 19. Kh2 Qh4 20. Rxe5 dxe5 21. Nxa8 Bxc2 22. Qxc2 Ng5+ 23. Kg1 (23. Kg2 $2 Qh3+ 24. Kg1 Nf3+ 25. Kf2 Qh2+ 26. Kxf3 Qxc2 $19) 23... Nf3+ 24. Kf1 Qh1+ 25. Kf2 (25. Ke2 $2 Qg2+ 26. Ke3 Qxc2 $19) 25... Qh2+ 26. Kxf3 Qxc2) 19. Rxe5 {[%emt 0:01:32] Re2 is the strong threat.} Nxg4+ {[%emt 0:00:12][%mdl 64] Discovered Attack} (19... dxe5 $2 {is the wrong capture.} 20. Qxf2 Qxf2+ 21. Kxf2 Bxc2 22. Be3 $19) ({Not} 19... Nxh3+ 20. Kh2 dxe5 21. Kxh3 $17) 20. Kg2 $2 {[%emt 0:01:54]} (20. Re3 Nxe3 21. Qxe3 Bxc2 22. Qxb6 axb6 23. a3) 20... Nxe5 {[%emt 0:00:04] Black is clearly winning.} 21. Bxg6 {[%emt 0:00:01]} hxg6 {[%emt 0:00:20]} ({Don't blunder} 21... fxg6 $2 22. Qe2 $19) 22. Qxd6 {[%emt 0:00:04]} Qb5 {[%emt 0:00:22] [#] ( -> ...Qe2+)} 23. Qd1 {[%emt 0:00:11] Inhibits Qe2+.} Nd3 {[%emt 0:00:27]} 24. b3 {[%emt 0:00:42]} Qd5+ {[%emt 0:00:11] Weighted Error Value: White=0.91/Black=0.17 (very precise)} 0-1

[Event "Superbet Rapid Poland 2022"]
[Site "Warsaw"]
[Date "2022.05.20"]
[Round "5.3"]
[White "Duda, Jan-Krzysztof"]
[Black "So, Wesley"]
[Result "0-1"]
[ECO "C65"]
[WhiteElo "2750"]
[BlackElo "2766"]
[Annotator "TA"]
[PlyCount "124"]
[EventDate "2022.05.19"]
[EventType "tourn"]
[EventCountry "POL"]
[SourceTitle "playchess.com"]
[Source "ChessBase"]
[SourceQuality "1"]
[TimeControl "1500+10"]

{[%evp 9,124,14,10,6,1,7,2,16,31,16,16,10,8,-37,-29,-31,-28,-36,-35,-27,-48,-62,-56,-84,-85,-81,-79,-89,-98,-139,-57,-63,-44,-37,-31,-31,-30,-91,-87,-86,-77,-312,-312,-312,-312,-312,-312,-312,-312,-312,-312,-312,-312,-392,-320,-392,-392,-392,-392,-392,-392,-385,-377,-377,-377,-377,-377,-29952,-29951,-29952,-29959,-29955,-29954,-29954,-29955,-29963,-29965,-29966,-29964,-29964,-29964,-29965,-29964,-29963,-29963,-29965,-29966,-29966,-29966,-29966,-29964,-29958,-561,-12844,-469,-29975,-29976,-29976,-29977,-29978,-29979,-29981,-29982,-29982,-29983,-29982,-29979,-29980,-29978,-29983,-29980,-29980,-29981,-29981,-29979,-29979,-12100]} 1. e4 {[%emt 0:00:04]} e5 {[%emt 0:00:03]} 2. Nf3 {[%emt 0:00:02]} Nc6 {[%emt 0:00:03]} 3. Bb5 {[%emt 0:00:02]} Nf6 {[%emt 0:00:04]} 4. d3 {[%emt 0:00:03]} Bc5 {[%emt 0:00:02]} 5. c3 {[%emt 0:00:06]} d5 {[%emt 0:00:03]} 6. exd5 {[%emt 0:00:15] C65: Ruy Lopez: Berlin Defence (3...Nf6), unusual lines and 4 0-0 Bc5.} Qxd5 {[%emt 0:00:02][%cal Oc5f2]} 7. Bc4 {[%emt 0:00:06]} Qd6 {[%emt 0:00:04]} 8. Nbd2 {[%emt 0:00:25] Prevents e4. The position is equal.} O-O {[%emt 0:00:16][%cal Ob7b5]} 9. b4 {[%emt 0:03:00]} Bb6 {[%emt 0:00:03]} 10. a4 {[%emt 0:01:38] Threatens to win with a5.} Bf5 $40 {[%emt 0:04:17][%mdl 128] [#] Black attacks.} 11. a5 $146 {[%emt 0:09:20] [#]} ({Predecessor:} 11. Ba3 e4 12. dxe4 Nxe4 13. Nxe4 Bxe4 14. Qxd6 cxd6 15. O-O-O Rac8 16. Bd5 Bxd5 17. Rxd5 {½-½ (32) Yu,Y (2704)-Deac,B (2643) Riga 2021}) 11... Bxf2+ {[%emt 0:02:26]} 12. Kxf2 {[%emt 0:00:02]} Bxd3 {[%emt 0:00:02]} 13. Bxd3 {[%emt 0:00:06]} Qxd3 {[%emt 0:00:02]} 14. Qe2 {[%emt 0:00:08]} Qxc3 {[%emt 0:00:30]} 15. Ra3 {[%emt 0:01:45]} Qxb4 {[%emt 0:01:35]} (15... Ng4+ 16. Kg3 Qxb4 17. Qc4 $11) 16. Qc4 {[%emt 0:00:04]} e4 {[%emt 0:01:58]} 17. Ne5 {[%emt 0:01:36]} Rad8 {[%emt 0:01:56]} 18. Qxb4 {[%emt 0:00:26]} Nxb4 {[%emt 0:00:01]} 19. Ndc4 {[%emt 0:02:33]} Rfe8 {[%emt 0:01:11]} (19... Nfd5 $17 {...f6 is the strong threat.} 20. Rf1 f6) 20. Bg5 $15 {[%emt 0:02:22]} Rd4 {[%emt 0:00:16]} 21. Be3 {[%emt 0:02:01] [#]} Ng4+ $1 {[%emt 0:02:46]} 22. Nxg4 {[%emt 0:00:46]} Rxc4 {[%emt 0:00:01]} 23. Bxa7 {[%emt 0:00:38]} (23. Bd2 $1 $11) 23... Nd3+ $17 {[%emt 0:00:37]} 24. Kg3 {[%emt 0:00:03]} f5 {[%emt 0:00:19] Hoping for ...c5. Black is more active.} 25. Rb1 $2 {[%emt 0:00:25] Now White is beyond hope.} (25. Nf2 $17 {was the only defense.} f4+ 26. Kg4) 25... c5 $19 {[%emt 0:01:01] And now ...h5 would win.} (25... fxg4 26. Rxb7 Ne1 27. a6 $11) 26. Rxb7 {[%emt 0:01:12] [#] Black must now prevent Rb8.} e3 $1 {[%emt 0:00:24]} 27. Nh6+ {[%emt 0:00:20]} ({Don't play} 27. Rxd3 Rxg4+ 28. Kh3 e2 $19) 27... gxh6 {[%emt 0:00:02] Really sharp!} 28. Rxd3 {[%emt 0:00:01]} e2 {[%emt 0:00:32]} 29. Rb1 {[%emt 0:00:02]} e1=Q+ {[%emt 0:00:02]} 30. Rxe1 {[%emt 0:00:02]} Rxe1 {[%emt 0:00:01][%mdl 4096] Endgame KRR-KRB} 31. Rd5 {[%emt 0:00:34]} Re3+ {[%emt 0:00:41]} 32. Kf2 {[%emt 0:00:02]} Ra3 {[%emt 0:00:02] aiming for ...Rc2+.} 33. Rxc5 {[%emt 0:00:19]} Rxc5 {[%emt 0:04:20]} 34. Bxc5 {[%emt 0:00:02]} Rxa5 {[%emt 0:00:01] KR-KB} 35. Be3 {[%emt 0:00:01]} Kg7 {[%emt 0:00:04]} 36. Kf3 {[%emt 0:00:02]} Ra4 {[%emt 0:00:16]} 37. Bf4 {[%emt 0:00:13]} Ra3+ {[%emt 0:00:11]} 38. Kf2 $2 {[%emt 0:00:28]} (38. Be3 $19) 38... h5 {[%emt 0:00:01]} 39. Be3 {[%emt 0:00:14]} Kf6 {[%emt 0:00:02]} 40. Bf4 {[%emt 0:00:08]} Ke6 {[%emt 0:00:05]} 41. Bb8 {[%emt 0:00:12]} Kd5 {[%emt 0:00:03]} 42. h3 {[%emt 0:00:10]} Ke4 {[%emt 0:00:02]} 43. Bc7 {[%emt 0:00:03]} Rc3 {[%emt 0:00:04]} 44. Bb8 {[%emt 0:00:11]} Rc8 {[%emt 0:00:07]} 45. Ba7 {[%emt 0:00:12]} Rc1 {[%emt 0:00:17]} 46. Ke2 {[%emt 0:00:12]} Rc7 {[%emt 0:01:30]} 47. Bb6 {[%emt 0:00:09]} Rc2+ {[%emt 0:00:20]} 48. Kf1 {[%emt 0:00:02]} Kf4 {[%emt 0:00:01]} 49. Bf2 {[%emt 0:00:16]} Rc1+ {[%emt 0:00:04]} 50. Ke2 {[%emt 0:00:01]} Rb1 {[%emt 0:00:16]} (50... Ra1 $142 51. Bh4 Ra2+ 52. Kf1 Ke3 53. Bf6 Rd2 54. Kg1 Rd5 55. Bh8 f4 56. Kh2 Rg5 57. Bf6 h6 58. Kh1 Kf2 59. Bxg5 hxg5 60. Kh2 g4 61. hxg4 hxg4 62. Kh1 Ke3 63. Kg1 g3 64. Kh1 Ke2 65. Kg1 Ke1 66. Kh1 f3 67. gxf3 Kf2 68. f4 g2+ 69. Kh2 g1=Q+ 70. Kh3 Qg3#) 51. Bh4 {[%emt 0:00:10]} h6 {[%emt 0:01:27]} (51... Rb2+ $142 52. Kf1 Ke3) 52. Kf2 {[%emt 0:00:11]} (52. Bf2 $19) 52... Rb2+ {[%emt 0:00:05] Black mates.} 53. Kg1 {[%emt 0:00:11]} Ke3 {[%emt 0:00:01]} 54. Kh1 {[%emt 0:00:20]} Ke2 {[%emt 0:00:04]} 55. Kg1 {[%emt 0:00:11]} Rb1+ {[%emt 0:00:02]} 56. Kh2 {[%emt 0:00:01]} Kf1 {[%emt 0:00:05]} 57. Bf6 {[%emt 0:00:11]} Rb6 {[%emt 0:00:06]} 58. Be5 {[%emt 0:00:15]} Re6 {[%emt 0:01:03]} 59. Bf4 {[%emt 0:00:13]} Re2 {[%emt 0:00:32]} 60. Kg3 {[%emt 0:00:07]} h4+ {[%emt 0:00:14]} 61. Kxh4 {[%emt 0:00:12]} Kxg2 {[%emt 0:00:02]} 62. Bxh6 {[%emt 0:00:10]} Re4+ {[%emt 0:00:03] Weighted Error Value: White=0.33/Black=0.04 (flawless)} 0-1

[Event "Superbet Rapid Poland 2022"]
[Site "Warsaw"]
[Date "2022.05.20"]
[Round "5.4"]
[White "Gavrilescu, David"]
[Black "Wojtaszek, Radoslaw"]
[Result "1/2-1/2"]
[ECO "B52"]
[WhiteElo "2518"]
[BlackElo "2696"]
[Annotator "TA"]
[PlyCount "84"]
[EventDate "2022.05.19"]
[EventType "tourn"]
[EventCountry "POL"]
[SourceTitle "playchess.com"]
[Source "ChessBase"]
[SourceQuality "1"]
[TimeControl "1500+10"]

{[%evp 9,84,13,16,17,24,7,32,0,28,16,7,0,5,6,16,4,21,-10,-7,-24,-6,-3,0,-6,0,-5,-2,-12,0,-9,0,0,0,0,0,0,0,0,0,0,0,0,0,0,0,0,0,0,0,0,0,0,0,0,0,0,-60,0,0,0,0,0,0,0,0,0,0,0,0,0,0,0,0,0,0,0,0]} 1. e4 {[%emt 0:00:03]} c5 {[%emt 0:00:01]} 2. Nf3 {[%emt 0:00:03]} d6 {[%emt 0:00:02]} 3. Bb5+ {[%emt 0:00:05]} Bd7 {[%emt 0:00:06]} 4. c4 {[%emt 0:00:05]} Nf6 {[%emt 0:00:04]} 5. Nc3 {[%emt 0:00:03]} g6 {[%emt 0:00:02]} 6. d4 {[%emt 0:00:21] B52: Sicilian: Moscow Variation with 3...Bd7.} cxd4 {[%emt 0:00:03]} 7. Nxd4 {[%emt 0:00:03]} Bg7 {[%emt 0:00:08]} 8. O-O {[%emt 0:01:41] White is slightly better.} O-O {[%emt 0:00:45]} 9. h3 {[%emt 0:00:29]} a6 {[%emt 0:00:18]} 10. Bxd7 {[%emt 0:00:03]} Nbxd7 {[%emt 0:00:02]} 11. b3 {[%emt 0:02:46]} Rc8 {[%emt 0:00:02][%cal Ob7b5]} 12. Bb2 {[%emt 0:00:19]} Qa5 {[%emt 0:00:28] [#]} 13. Nd5 $146 {[%emt 0:01:56]} ({Predecessor:} 13. Re1 Rfe8 14. Qd2 Ne5 15. Rad1 Nc6 16. Na4 Qxd2 17. Rxd2 Nxd4 18. Bxd4 Nd7 19. Bxg7 Kxg7 {½-½ (47) Alekseev,E (2707)-Antipov,M (2515) St Petersburg 2013}) 13... Rfe8 {[%emt 0:00:11]} 14. Re1 {[%emt 0:00:07]} e6 {[%emt 0:00:36]} 15. Nxf6+ {[%emt 0:00:04]} Nxf6 {[%emt 0:00:03]} 16. Qd3 {[%emt 0:01:11]} d5 {[%emt 0:02:44]} 17. exd5 {[%emt 0:02:27]} exd5 {[%emt 0:00:07]} 18. Rxe8+ {[%emt 0:00:02]} Rxe8 {[%emt 0:00:14]} 19. Nf3 {[%emt 0:00:05]} dxc4 {[%emt 0:03:11]} (19... Qc5 {is more complex.} 20. cxd5 Nxd5 21. Bxg7 Kxg7 22. Rd1 Nc3) 20. Qxc4 {[%emt 0:00:04]} Qd5 {[%emt 0:00:38]} 21. Qxd5 {[%emt 0:02:01]} Nxd5 {[%emt 0:00:03]} 22. Bxg7 {[%emt 0:00:03]} Kxg7 $11 {[%emt 0:00:01][%mdl 4096] Endgame KRN-KRN} 23. Rd1 {[%emt 0:00:27]} Nf6 {[%emt 0:01:25]} 24. Rd2 {[%emt 0:00:50]} Rc8 {[%emt 0:00:11]} 25. g3 {[%emt 0:00:39]} Ne4 {[%emt 0:00:39]} 26. Rd4 {[%emt 0:00:09]} f5 {[%emt 0:01:03]} 27. Nd2 {[%emt 0:00:28]} ({Reject} 27. Rd7+ Kf6 28. Nd2 (28. Rxb7 Rc1+ 29. Kg2 Rc2 $15) 28... Ke6 $15) 27... Rc1+ {[%emt 0:00:41]} 28. Kg2 {[%emt 0:00:01]} Rd1 {[%emt 0:00:21]} 29. Nf3 {[%emt 0:00:03]} Rxd4 {[%emt 0:00:53]} 30. Nxd4 {[%emt 0:00:02] KN-KN} Kf6 {[%emt 0:00:01]} 31. f4 {[%emt 0:00:09]} Ke7 {[%emt 0:01:02]} 32. Kf3 {[%emt 0:02:18]} Kd6 {[%emt 0:00:25]} (32... Nc3 $11) 33. g4 $1 $15 {[%emt 0:01:07]} Kd5 {[%emt 0:00:13] The position is equal.} 34. Nc2 {[%emt 0:01:19]} Nc3 {[%emt 0:02:15]} 35. gxf5 {[%emt 0:00:44]} gxf5 {[%emt 0:00:01]} 36. a3 {[%emt 0:00:08]} Nb5 {[%emt 0:00:23] [#] Strongly threatening ...Nd4+.} 37. Ke3 {[%emt 0:00:08] Against Nd4} a5 {[%emt 0:02:03]} 38. Kd3 {[%emt 0:00:27]} Nd6 {[%emt 0:00:29]} 39. Ne3+ {[%emt 0:00:42]} Kc5 {[%emt 0:00:08]} 40. Nc2 {[%emt 0:00:22]} Kd5 {[%emt 0:00:30]} 41. Ne3+ {[%emt 0:00:03]} Kc5 {[%emt 0:00:01]} 42. Nc2 {[%emt 0:00:01]} Kd5 {[%emt 0:00:11] A balanced but interesting game.  Weighted Error Value: White=0.03 (flawless) /Black=0.03 (flawless)} 1/2-1/2